Cogmind - Beta 16 *** ADVENTURER MODE // 2026.01.16 @ 18:57:24 Player: terminallyCapricious Result: Self-destructed Performance ------------- Evolutions (1) 500 Regions Visited (2) 400 Robots Destroyed (32) 160 Value Destroyed (735) 735 Prototype IDs (3) 60 Alien Tech Used (0) 0 Bonus (0) 0 TOTAL SCORE: 1855 Bonus ------- None Cogmind --------- Core Integrity 373/400 Matter 300/300 Energy 98/100 System Corruption 0% Temperature Cool (0) Movement Walking (120) Location -9/Materials Parts ------- > --- POWER (1) -------- (None) > --- PROPULSION (2) --- Improved Aluminum Leg Improved Aluminum Leg > --- UTILITY (4) ------ Weight Redist. System Core Shielding Propulsion Shielding > --- WEAPON (2) ------- Mace > --- INVENTORY (5) ---- Heat Sink Signal Interpreter Peak State ------------ > --- POWER ------------ Light Ion Engine > --- PROPULSION ------- Improved Hover Unit Improved Hover Unit > --- UTILITY ---------- Weight Redist. System Light Armor Plating > --- WEAPON ----------- Advanced Beam Cannon Mace > --- INVENTORY -------- Heat Sink Signal Interpreter Advanced Beam Cannon Grenade Launcher [Rating: 13] Favorites ----------- Power Light Ion Engine Engine Light Ion Engine Propulsion Improved Hover Unit Leg Improved Aluminum Leg Wheel Wheel Hover Unit Improved Hover Unit Flight Unit Flight Unit Utility Weight Redist. System Device Weight Redist. System Protection Light Armor Plating Weapon Grenade Launcher Energy Cannon Light EM Pulse Cannon Ballistic Gun Assault Rifle Launcher Grenade Launcher Impact Weapon Mace Build | -11 -10 -9 ------- Run | Yrd Mat Mat Slots Evolved 2 | . . 2 Power . | . . . Propulsion . | . . . Utility 2 | . . 2 Weapon . | . . . Parts Attached 26 | 5 12 9 Power 2 | 1 . 1 Engine 2 | 1 . 1 Core . | . . . Reactor . | . . . Propulsion 9 | 2 4 3 Treads . | . . . Leg 2 | . . 2 Wheel 2 | 2 . . Hover 2 | . 2 . Flight 3 | . 2 1 Utility 6 | . 3 3 Device 2 | . 1 1 Storage . | . . . Processor . | . . . Hackware . | . . . Protection 4 | . 2 2 Artifact . | . . . Weapon 9 | 2 5 2 Energy Gun . | . . . Energy Cannon 3 | . 2 1 Ballistic Gun 3 | 2 1 . Ballistic Cannon . | . . . Launcher 2 | . 2 . Special Weapon . | . . . Impact Weapon 1 | . . 1 Slashing Weapon . | . . . Piercing Weapon . | . . . Special Melee Weapon . | . . . Unidentified Prototypes 3 | . . 3 Parts Lost 2 | . . 2 Power 1 | . . 1 Propulsion . | . . . Utility 1 | . . 1 Weapon . | . . . Highest Loss Streak 1 | . . 1 To Critical Strikes . | . . . Average Backups 1 | 1 1 2 Power . | . . . Propulsion . | . . . Utility 1 | . . 1 Weapon . | . . . Tool/Special . | . . . Unused Backups 3 | . . 3 Power . | . . . Propulsion . | . . . Utility 2 | . . 2 Weapon 1 | . . 1 Tool/Special . | . . . Average Slot Usage (%) 83 | . 91 77 Engine 12 | . 14 10 Leg 6 | . . 11 Wheel 8 | . 18 . Hover 7 | . 3 11 Flight 2 | . 5 . Device 10 | . 10 10 Protection 16 | . 9 20 Energy Cannon 2 | . 4 . Ballistic Gun 5 | . 13 . Launcher 6 | . 9 4 Impact Weapon 4 | . . 8 Peak Build Rating 13 | 5 10 13 Average Rating 9 | 2 7 10 On Entrance 5 | . 5 10 Avg Prop Armor Cover (%) 5 | . . 5 Naked Turns . | . . . Heaviest Build 12 | 7 12 12 Greatest Support 32 | 26 32 32 Greatest Overweight (x) . | . . . Average Overweight (x) . | . . . Largest Inventory Capacity 5 | 5 5 5 Average Capacity 5 | 5 5 5 Most Carried 5 | 5 4 5 Average Carried 1 | 1 1 2 Final Capacity 5 | 5 5 5 Final Carried 2 | . 2 2 Class Distribution -------------------- 100% | Mutant Dominant Class ---------------- Mutant | -10/Materials Mutant | -9/Materials Resources | -11 -10 -9 ----------- Run | Yrd Mat Mat Matter Collected 822 | 229 288 305 Remotely . | . . . Salvage Created 788 | . 368 420 Parts 43 | . 31 12 Haulers Intercepted 5 | . 2 3 Recyclers Shooed . | . . . Parts Field Recycled . | . . . Retrieved Matter . | . . . Parts Self-Destructed . | . . . Prevented . | . . . Parts Restored . | . . . Kills | -11 -10 -9 ------- Run | Yrd Mat Mat Combat Hostiles Destroyed 20 | . 14 6 Melee 1 | . . 1 Guns 3 | . 3 . Cannons 1 | . 1 . AOE 11 | . 10 1 Classes Destroyed 6 | . 5 1 Worker 1 | . 1 . Hauler 5 | . 2 3 Watcher 6 | . 3 3 Swarmer 6 | . 6 . Grunt 11 | . 8 3 Sentry 3 | . . 3 Best Kill Streak 7 | . 7 3 Combat Bots Only 6 | . 6 2 Max Kills in Single Turn 3 | . 3 1 Gunslinging . | . . . Exploded 3 | . 3 1 Melee 1 | . . 1 Uniques/NPCs Destroyed . | . . . Combat | -11 -10 -9 -------- Run | Yrd Mat Mat Hostile Shots Fired 62 | . 30 32 Missed 18 | . 12 6 Hits 44 | . 18 26 Melee 4 | . . 4 Projectile 40 | . 18 22 Critical Strikes 5 | . . 5 Actively Blocked 3 | . . 3 Damage Taken 503 | . 152 351 Core 57 | . 30 27 Absorbed by Shields . | . . . Redirected to Shielding 57 | . 14 43 Ignored by Resistances 147 | . 49 98 Regen/Repaired (Parts) 16 | . . 16 Core Remaining (%) 94 | 100 88 . Volleys Fired 31 | . 29 2 Largest 2 | . 2 2 Hottest 112 | . 112 60 Shots Fired 52 | . 48 4 Gun 29 | . 29 . Cannon 6 | . 6 . Launcher 17 | . 13 4 Special . | . . . Kinetic 29 | . 29 . Thermal . | . . . Explosive 17 | . 13 4 Electromagnetic 6 | . 6 . Robot Hit Streak 12 | . 12 8 Robot Miss Streak 4 | . 4 . Penetration Max . | . . . Secondary Targets . | . . . Shots Hit Robots 65 | . 33 32 Core Hits 43 | . 35 8 Critical Kills 1 | . . 1 Critical Parts Destroyed 4 | . . 4 Critical Strikes 5 | . . 5 Smash 5 | . . 5 Melee Attacks 30 | . . 30 Impact 30 | . . 30 Slashing . | . . . Piercing . | . . . Sneak Attacks 3 | . . 3 Combat Hostiles . | . . . Follow-up Attacks . | . . . Damage Inflicted 2092 | . 1200 892 Guns 217 | . 217 . Cannons 137 | . 137 . Explosions 909 | . 846 63 Melee 829 | . . 829 Ramming . | . . . Kinetic 217 | . 217 . Thermal 47 | . 47 . Explosive 862 | . 799 63 Electromagnetic 137 | . 137 . Impact 829 | . . 829 Slashing . | . . . Piercing . | . . . Highest Corruption . | . . . Average Corruption . | . . . Corruption Purged . | . . . Corruption Blocked . | . . . Overload Shots . | . . . Overflow Damage 295 | . 32 263 Projectiles . | . . . Explosions 32 | . 32 . Melee 263 | . . 263 Knockbacks 3 | . . 3 Impact 3 | . . 3 Kinetic . | . . . Secondary . | . . . Self-Inflicted Damage 14 | . 14 . Shots 1 | . 1 . Rammed . | . . . Targets Rammed . | . . . Kicked . | . . . Crushed . | . . . Highest Temperature 213 | . 57 213 Average Temperature 38 | . 15 73 Received Heat Transfer 204 | . 63 141 Siege Activations . | . . . Martial Activations . | . . . Shielding Activations . | . . . Robots Disrupted . | . . . Combat Hostiles . | . . . Robots Corrupted 6 | . . 6 Combat Hostiles 4 | . . 4 Parts Fried 8 | . . 8 Impact Corruptions 12 | . . 12 Robots Melted . | . . . Combat Hostiles . | . . . Parts Melted . | . . . Heat Transferred . | . . . Parts Sabotaged . | . . . Parts Stolen . | . . . Parts Stripped . | . . . Power Chain Reactions 1 | . 1 . Alert | -11 -10 -9 ------- Run | Yrd Mat Mat Maximum Alert Level 1 | . 1 . Low Security (%) 81 | 100 58 100 Level 1 18 | . 41 . Level 2 . | . . . Level 3 . | . . . Level 4 . | . . . Level 5 . | . . . High Security . | . . . Max Security . | . . . Peak Influence 264 | . 264 132 Initial 77 | . . 77 Average 95 | . 148 57 Influence Increases 906 | . 536 370 Destroy 0b10 Robot/C 400 | . 280 120 Destroy 0b10 Robot/NC 60 | . 30 30 Destroy Leader 102 | . 50 52 Successful Hack 23 | . 19 4 Disable Machine 18 | . 18 . Destroy Structure 108 | . 94 14 Partial Spotted 30 | . . 30 Lose Combat Pursuer 165 | . 45 120 Influence Decreases 874 | . 320 554 Entered New Map 139 | . . 139 Time Decay 725 | . 320 405 Lost Part 10 | . . 10 Squads Dispatched 3 | . . 3 Investigation 1 | . . 1 Extermination . | . . . Reinforcement 2 | . . 2 Assault . | . . . Garrison . | . . . Intercept . | . . . Searches Triggered . | . . . Construction Impeded . | . . . Haulers Reinforced . | . . . Active Scanning Responses . | . . . Cargo Convoy Interrupts . | . . . Stealth | -11 -10 -9 --------- Run | Yrd Mat Mat Distress Signals 3 | . . 3 Communications Jammed . | . . . Distress Signals . | . . . Times Spotted 42 | . 21 21 Peak Tracking Total 6 | . 6 6 Tactical Retreats 6 | . 2 4 Traps | -11 -10 -9 ------- Run | Yrd Mat Mat Traps Triggered 1 | . . 1 Indirectly . | . . . Trap Hack Attempts . | . . . Triggered . | . . . Disarmed . | . . . Reprogrammed 6 | . 6 . Reused . | . . . Traps Extracted . | . . . Installed . | . . . Triggered . | . . . Machines | -11 -10 -9 ---------- Run | Yrd Mat Mat Machines Disabled 2 | . 2 . Max in Single Turn 1 | . 1 . Machines Repaired . | . . . Machines Dismantled . | . . . Machines Sabotaged . | . . . Overloaded Fab Kills . | . . . Hacking | -11 -10 -9 --------- Run | Yrd Mat Mat Machines Accessed 14 | . 10 4 Terminals 11 | . 8 3 Fabricators . | . . . Repair Stations 1 | . . 1 Recycling Units 2 | . 2 . Scanalyzers . | . . . Garrison Access . | . . . Total Hacks 36 | . 25 11 Successful 22 | . 16 6 Failed 14 | . 9 5 Catastrophic 2 | . 1 1 Database Lockouts . | . . . Manual . | . . . Terminals 30 | . 21 9 Fabricators . | . . . Repair Stations 2 | . . 2 Recycling Units 4 | . 4 . Scanalyzers . | . . . Garrison Access . | . . . Terminal Hacks 17 | . 13 4 Robot Analysis 1 | . 1 . Alert Level 4 | . 3 1 Locate Traps 3 | . 3 . Reprogram Traps 2 | . 2 . Maintenance Status 1 | . 1 . Security Status 1 | . 1 . Reinforcement Status 1 | . . 1 Recall Assault 1 | . 1 . Hauler Manifests 3 | . 1 2 Fabricator Hacks . | . . . Repair Station Hacks 2 | . . 2 Scan Component 1 | . . 1 Repair 1 | . . 1 Recycling Unit Hacks 3 | . 3 . Report Inventory 2 | . 2 . Retrieve Components 1 | . 1 . Scanalyzer . | . . . Garrison Access Hacks . | . . . Unauthorized Hacks . | . . . Terminals . | . . . Fabricators . | . . . Repair Stations . | . . . Recycling Units . | . . . Scanalyzers . | . . . Garrison Access . | . . . Data Cores Recovered . | . . . Used . | . . . Hacking Detections 11 | . 7 4 Full Trace Events 1 | . 1 . Feedback Events . | . . . Feedback Blocked . | . . . Robot Schematics Acquired . | . . . Robots Built . | . . . Authchips . | . . . Time . | . . . Total Robot Build Rating . | . . . Part Schematics Acquired . | . . . Parts Built . | . . . Authchips . | . . . Time . | . . . Total Part Build Rating . | . . . Part Studies Acquired . | . . . Parts Repaired 1 | . . 1 Time 32 | . . 32 Parts Recycled . | . . . Recycled Matter . | . . . Retrieved Matter . | . . . Retrieved Components 9 | . 9 . Parts Scanalyzed . | . . . Part Schematics Acquired . | . . . Parts Damaged . | . . . Bothacking | -11 -10 -9 ------------ Run | Yrd Mat Mat Used RIF Installer . | . . . Robots Hacked . | . . . Non-combat . | . . . Combat . | . . . Robot Hacks Applied . | . . . Relay Couplers Released . | . . . Fabnet Peak Effective % . | . . . Robots Rewired . | . . . Allies Hacked . | . . . Hacks Repelled . | . . . Allies | -11 -10 -9 -------- Run | Yrd Mat Mat Total Allies . | . . . Largest Group . | . . . Highest-Rated Group . | . . . Highest-Rated Ally . | . . . Total Orders . | . . . Ally Attacks . | . . . Total Damage . | . . . Kills . | . . . Allies Corrupted . | . . . Allies Melted . | . . . Intel | -11 -10 -9 ------- Run | Yrd Mat Mat Active Infowar (turns) . | . . . Robot Analysis Total 1 | . 1 . Derelict Logs Recovered . | . . . Drone Launches . | . . . Drone Recoveries . | . . . Exploration | -11 -10 -9 ------------- Run | Yrd Mat Mat Turns Passed 1639 | 38 710 891 Spaces Moved 1759 | 41 833 885 Core 22 | 22 . . Treads . | . . . Legs 281 | . . 281 Wheels 409 | 19 390 . Hover 762 | . 158 604 Flight 285 | . 285 . Fastest Speed 37 | 50 37 56 Average Speed 71 | 68 65 78 Slowest Speed 120 | 90 90 120 Overloaded Moves . | . . . Propulsion Burnouts . | . . . Robots Hopped . | . . . Potential Cave-ins . | . . . Cave-ins Triggered . | . . . Exploration Rate (%) 48 | 3 99 42 Regions Visited 2 Branch Regions . Pre-discovered Areas . | . . . Known Exits Taken . | . . . Unknown Exits Taken 2 | 1 1 . Scrap Searched . | . . . Spaces Dug . | . . . Terrain Destroyed 124 | . 103 21 Melee . | . . . Projectile . | . . . AOE 124 | . 103 21 Terrain Rammed . | . . . Walls Destroyed . | . . . Machines Disabled . | . . . Actions | -11 -10 -9 --------- Run | Yrd Mat Mat Total 2026 | 50 946 1030 Wait 121 | . 42 79 Move 1757 | 40 832 885 Hop . | . . . Pick Up 30 | 5 13 12 Fast Attach . | . . . Attach 14 | 5 4 5 Detach . | . . . Swap 24 | . 17 7 Drop 19 | . 9 10 Fire 31 | . 29 2 Melee 30 | . . 30 Ram . | . . . Kick . | . . . Crush . | . . . Escape Stasis . | . . . Rewire . | . . . Trap . | . . . Miscellaneous . | . . . Route ------- -11/Scrapyard -10/Materials (discovered 5 exits: *Mat x3 / [*Min] / [*Sub]) -9/Materials (discovered 2 exits: [*Mat] / [*Sto]) History --------- Turn | Location | Event 15 | -11/Scrapyard | Discovered new exit (range 15) 39 | -11/Scrapyard | Entered Materials 301 | -10/Materials | Build established: Mutant 476 | -10/Materials | Discovered new exit (range 15) 547 | -10/Materials | Discovered new exit (range 11) 564 | -10/Materials | Discovered new exit (range 5) 583 | -10/Materials | Discovered new exit (range 12) 636 | -10/Materials | Discovered new exit (range 4) 749 | -10/Materials | Entered another Materials area 749 | -9/Materials | Evolved 2 slots: Utility x2 883 | -9/Materials | Discovered new exit (range 3) 956 | -9/Materials | Discovered new exit (range 14) 1504 | -9/Materials | Repaired Weight Redist. System 1640 | -9/Materials | Self-destructed Last Messages --------------- 01607_ G-47 Trooper knocked back. 01607_ ALERT: Hostiles spotted, dispatching reinforcements to Terminal M004. 01608_ K-01 Serf collects debris. [Achievement: That Tickles] 01612_ Destroyed Particle Gun. 01612_ G-47 Trooper system corrupted by crushing effect. 01612_ G-47 Trooper knocked back. 01612_ K-01 Serf collects debris. 01616_ W-16 Scout distress signal alerts nearby ally. 01622_ W-16 Scout destroyed. 01623_ K-01 Serf collects debris. 01628_ C-30 ARC bursts open, deploying its payload. 01628_ L-31 Rogue unfolds itself. 01628_ G-34 Mercenary unfolds itself. 01629_ K-01 Serf collects debris. 01637_ Lgt. Ion Engine destroyed. Map ----- +----------------------------------------------------+ | # "" #???# #?????????????????? | | # """ #???# #?????????????????? | | ####+### # S" ##### ##### #?????????? | | ## ### ## """ + #?????????? | | ## #?# ## """ ######## #?????????? | | ## #?# ## #??????? #?????????? | | ## #?# #####+#########??? #?????????? | | ## #?# #????## #?????????? | | ## #?# #?????? # #????????? | | ## #?# "T" #???????# ???????? | | ## #?# #### #????????? < ?????????? | | ## #?# #### #?????????? ?????????? | | #######?# """ """# #??????????????????????? | | ######### """ R"# #??????????????????????? | | """ """# #??????????????????????? | | #### #??????????????????????? | | #??# #??????????????????????? | | ########## ####+####??# #????###???????????????? | | # #??# ## #??# #?? ! #???????????????? | | #"" #??# ## """ #??# # #???????????????? | | #"T #??# ## """ #??# / """ #???????????????? | | #"" #### ## """ #??# "%# """ #???????????????? | | # + ## #### "#??""" #???????????????? | | # = [####### ! + % #???? +???????????????? | | # ]#?????############l#####???#???????????????? | | #######????????????# @ #???????????????????? | | #??????????????????# T" #???????????????????? | | #??????????????????# "" #???????????????????? | | #??????????????????# """ =%! #???????????????????? | | #??????????????????# """ %k #???????????????????? | | #??????????????????# #???????????????????? | | #??????????????????# #???????????????????? | | #??????????????????# + ??????????????????? | | #??????????????????### #########?????????????????? | | #????????????????????###?????????????????????????? | | #????????????????????????????????????????????????? | | #########????????????????????????????????????????? | | ?????????????????????????????????????? | | ?????????????????????????????????????? | | ?????????????????????????????????????? | | ## """ ""??????????????????????????????????????? | | ????"""??????????????????????????????????????????? | | ??????"??????????????????????????????????????????? | | ?????????????????????????????????????????????????? | | ?????????????????????????????????????????????????? | | ?????????????????????????????????????????????????? | | ?????????????????????????????????????????????????? | | ?????????????????????????????????????????????????? | | ?????????????????????????????????????????????????? | | ?????????????????????????????????????????????????? | +----------------------------------------------------+ Best States ------------- Heat Dissipation 28 Energy Generation 10 Energy Capacity 125 Matter Stores 300 Matter Capacity 300 Sight Range 16 Terrain Scan Density 10 Additional Mass Support 6 Armor Coverage 150 Resistance: KI 20 Resistance: TH 20 Resistance: EX 20 Resistance: EM 20 Resistance: I 20 Resistance: S 20 Resistance: P 20 Core Shielding 20 Propulsion Shielding 33 Weapon Shielding 33 Evasion (%) 62 Offensive Hacking 10 Item Schematics ----------------- None Robot Schematics ------------------ None Fabricated ------------ Nothing Repaired ---------- Weight Redist. System | 27% | -9/Materials Studied --------- None Alien Tech Used ----------------- None Achievements -------------- That Tickles Challenges ------------ None Game ------ Seed TrackerSensorMegashotty Manual? 0 Play Time 00:26:02 Cumulative 28.5 hours Start 2026.01.16 @ 17:11:28 End 2026.01.16 @ 18:57:24 Sessions 5 Manual Loads 0 Difficulty Adventurer Special Mode None Game No. 16 Rogue 0 Adventurer 16 Explorer 0 Win Type - Total 0 Types 0/0/0/0/0/0/0/0/0/0 Lore% 11 Gallery% 23 Achievement% 17 Wizard Run 0 Options --------- Layout 1 ASCII 0 Keyboard 0 Movement Arrows Keybinds 0 Fullscreen 1 Font 32/SmallcapsGlow Map View 50x35 Zoom Use 0% Tactical HUD 1 Map Filters NONE Filters NONE Steam 1 RUN: a6839f6f-3e03-4428-9fe5-69614d41a423